fUST/lending_fUST_20240930
["ID","MTS","AMOUNT","RATE_DAILY","PERIOD"]
[339559716,1727693454846,-500.0,0.00013972,2]
[339559717,1727693454856,-162.31456302,0.00013972,2]
[339559718,1727693454867,-500.0,0.00013972,2]
[339559719,1727693454878,-500.0,0.00013972,2]
[339559720,1727693454890,-500.0,0.00013972,2]
[339559721,1727693454902,-1233.71,0.00013972,2]
[339559722,1727693454914,-500.0,0.00013972,2]
[339559723,1727693454926,-600.07,0.00013972,2]
[339559724,1727693454939,-500.0,0.00013972,2]
[339559725,1727693454952,-1139.92,0.00013972,2]
[339559726,1727693454963,-500.0,0.00013972,2]
[339559727,1727693454974,-5668.46223,0.00013972,2]
[339559728,1727693454987,-5668.46223,0.00013972,2]
[339559729,1727693454999,-5668.46223,0.00013972,2]
[339559730,1727693455012,-500.0,0.00013972,2]
[339559731,1727693455024,-2029.36,0.00013972,2]
[339559732,1727693455036,-5668.46223,0.00013972,2]
[339559733,1727693455047,-5668.46223,0.00013972,2]
[339559734,1727693455057,-717.53,0.00013972,2]
[339559735,1727693455067,-5668.46223,0.00013972,2]
[339559736,1727693455078,-500.0,0.00013972,2]
[339559737,1727693455088,-500.0,0.00013972,2]
[339559738,1727693455099,-500.0,0.00013972,2]
[339559739,1727693455112,-500.0,0.00013972,2]
[339559740,1727693455124,-500.0,0.00013972,2]
[339559741,1727693455137,-500.0,0.00013972,2]
[339559742,1727693455150,-522.08,0.00013972,2]
[339559743,1727693455161,-500.0,0.00013972,2]
[339559744,1727693455172,-151.0,0.00013972,2]
[339559745,1727693455184,-151.0,0.00013972,2]
[339559746,1727693455195,-500.0,0.00013972,2]
[339559747,1727693455205,-151.0,0.00013972,2]
[339559748,1727693455217,-500.0,0.00013972,2]
[339559749,1727693455229,-151.0,0.00013972,2]
[339559750,1727693455241,-151.0,0.00013972,2]
[339559751,1727693455252,-151.0,0.00013972,2]
[339559752,1727693455262,-500.0,0.00013972,2]
[339559753,1727693455273,-500.0,0.00013972,2]
[339559754,1727693455283,-500.0,0.00013972,2]
[339559755,1727693455295,-500.0,0.00013972,2]
[339559756,1727693455306,-500.0,0.00013972,2]
[339559757,1727693455317,-500.0,0.00013972,2]
[339559758,1727693455328,-158.15725883,0.00013972,2]
[339559759,1727693455339,-500.0,0.00013972,2]
[339559760,1727693455350,-866.98,0.00013972,2]
[339559761,1727693455360,-500.0,0.00013972,2]
[339559762,1727693455371,-500.0,0.00013972,2]
[339559763,1727693455382,-500.0,0.00013972,2]
[339559764,1727693455394,-873.372976,0.00013972,2]
[339559765,1727693455406,-873.372976,0.00013972,2]
[339559766,1727693455417,-536.93,0.00013972,2]
[339559767,1727693455428,-873.372976,0.00013972,2]
[339559768,1727693455439,-825.23,0.00013972,2]
[339559769,1727693455449,-500.0,0.00013972,2]
[339559770,1727693455460,-500.0,0.00013972,2]
[339559771,1727693455470,-873.372976,0.00013972,2]
[339559772,1727693455481,-873.372976,0.00013972,2]
[339559773,1727693455492,-873.372976,0.00013972,2]
[339559774,1727693455506,-1046.14,0.00013972,2]
[339559775,1727693455516,-709.54,0.00013972,2]
[339559776,1727693455527,-2272.69,0.00013972,2]
[339559777,1727693455539,-500.0,0.00013972,2]
[339559778,1727693455552,-500.0,0.00013972,2]
[339559779,1727693455563,-528.19098392,0.00013972,2]
[339559780,1727693455574,-222.0098,0.00013972,2]
[339559781,1727693455587,-1318.782489,0.00013972,2]
[339559782,1727693455598,-500.0,0.00013972,2]
[339559783,1727693455609,-1318.782489,0.00013972,2]
[339559784,1727693455620,-500.0,0.00013972,2]
[339559785,1727693455631,-1318.782489,0.00013972,2]
[339559786,1727693455641,-500.0,0.00013972,2]
[339559787,1727693455667,-500.0,0.00013972,2]
[339559788,1727693455683,-500.0,0.00013972,2]
[339559789,1727693455695,-1361.78,0.00013972,2]
[339559790,1727693455709,-1318.782489,0.00013972,2]
[339559791,1727693455721,-1318.782489,0.00013972,2]
[339559792,1727693455734,-500.0,0.00013972,2]
[339559793,1727693455746,-1318.782489,0.00013972,2]
[339559794,1727693455758,-500.0,0.00013972,2]
[339559795,1727693455771,-500.0,0.00013972,2]
[339559796,1727693455784,-1041.13,0.00013972,2]
[339559797,1727693455796,-500.0,0.00013972,2]
[339559798,1727693455808,-500.0,0.00013972,2]
[339559799,1727693455820,-500.0,0.00013972,2]
[339559800,1727693455832,-364.64542159,0.00013972,2]
[339559801,1727693455844,-500.0,0.00013972,2]
[339559802,1727693455856,-1288.95,0.00013972,2]
[339559803,1727693455868,-500.0,0.00013972,2]
[339559804,1727693455880,-1161.77,0.00013972,2]
[339559805,1727693455892,-500.0,0.00013972,2]
[339559806,1727693455906,-500.0,0.00013972,2]
[339559807,1727693455918,-151.0,0.00013972,2]
[339559808,1727693455931,-555.02650704,0.00013972,2]
[339559809,1727693455943,-151.0,0.00013972,2]
[339559810,1727693455954,-151.0,0.00013972,2]
[339559811,1727693455966,-500.0,0.00013972,2]
[339559812,1727693455978,-170.280696,0.00013972,2]
[339559813,1727693455990,-170.280696,0.00013972,2]
[339559814,1727693456002,-170.280696,0.00013972,2]
[339559815,1727693456014,-500.0,0.00013972,2]
[339559816,1727693456027,-500.0,0.00013972,2]
[339559817,1727693456042,-500.0,0.00013972,2]
[339559818,1727693456053,-170.280696,0.00013972,2]
[339559819,1727693456065,-170.280696,0.00013972,2]
[339559820,1727693456081,-500.0,0.00013972,2]
[339559821,1727693456093,-170.280696,0.00013972,2]
[339559822,1727693456104,-500.0,0.00013972,2]
[339559823,1727693456115,-608.29,0.00013972,2]
[339559824,1727693456127,-500.0,0.00013972,2]
[339559825,1727693456139,-500.0,0.00013972,2]
[339559826,1727693456153,-764.84,0.00013972,2]
[339559827,1727693456164,-151.0,0.00013972,2]
[339559828,1727693456175,-500.0,0.00013972,2]
[339559829,1727693456187,-500.0,0.00013972,2]
[339559830,1727693456199,-151.0,0.00013972,2]
[339559831,1727693456209,-151.0,0.00013972,2]
[339559832,1727693456220,-500.0,0.00013972,2]
[339559833,1727693456232,-191.840227,0.00013972,2]
[339559834,1727693456244,-191.840227,0.00013972,2]
[339559835,1727693456256,-191.840227,0.00013972,2]
[339559836,1727693456267,-466.59180973,0.00013972,2]
[339559837,1727693456278,-500.0,0.00013972,2]
[339559838,1727693456289,-151.0,0.00013972,2]
[339559839,1727693456301,-500.0,0.00013972,2]
[339559840,1727693456312,-151.0,0.00013972,2]
[339559841,1727693456323,-508.32,0.00013972,2]
[339559842,1727693456334,-191.840227,0.00013972,2]
[339559843,1727693456345,-151.0,0.00013972,2]
[339559844,1727693456356,-191.840227,0.00013972,2]
[339559845,1727693456366,-191.840227,0.00013972,2]
[339559846,1727693456378,-151.0,0.00013972,2]
[339559847,1727693456389,-151.0,0.00013972,2]
[339559848,1727693456402,-151.0,0.00013972,2]
[339559849,1727693456413,-500.0,0.00013972,2]
[339559850,1727693456424,-500.0,0.00013972,2]
[339559851,1727693456435,-500.0,0.00013972,2]
[339559852,1727693456447,-500.0,0.00013972,2]
[339559853,1727693456458,-500.0,0.00013972,2]
[339559854,1727693456469,-500.0,0.00013972,2]
[339559855,1727693456479,-500.0,0.00013972,2]
[339559856,1727693456490,-500.0,0.00013972,2]
[339559857,1727693456503,-18211.66,0.00013972,2]
[339559858,1727693456514,-1391.94,0.00013972,2]
[339559859,1727693456525,-1043.1,0.00013972,2]
[339559860,1727693456535,-500.0,0.00013972,2]
[339559861,1727693456547,-620.47,0.00013972,2]
[339559862,1727693456558,-500.0,0.00013972,2]
[339559863,1727693456569,-500.0,0.00013972,2]
[339559864,1727693456582,-500.0,0.00013972,2]
[339559865,1727693456594,-500.0,0.00013972,2]
[339559866,1727693456604,-2646.08,0.00013972,2]
[339559867,1727693456616,-500.0,0.00013972,2]
[339559868,1727693456627,-500.0,0.00013972,2]
[339559869,1727693456637,-500.0,0.00013972,2]
[339559870,1727693456650,-500.0,0.00013972,2]
[339559871,1727693456661,-500.0,0.00013973,2]
[339559872,1727693456672,-500.0,0.00013973,2]
[339559873,1727693456688,-500.0,0.00014051,2]
[339559874,1727693456703,-150.0,0.00014051,2]
[339559875,1727693456715,-150.0,0.00014051,2]
[339559876,1727693456727,-500.0,0.00014078,2]
[339559877,1727693456739,-150.0,0.00014078,2]
[339559878,1727693456752,-150.0,0.00014078,2]
[339559879,1727693456764,-295.410847,0.00014101,2]
[339559880,1727693456777,-295.410847,0.00014101,2]
[339559881,1727693456789,-157.568779,0.00014101,2]
[339559882,1727693456801,-873.372976,0.00014101,2]
[339559883,1727693456812,-873.372976,0.00014101,2]
[339559884,1727693456824,-1318.782489,0.00014101,2]
[339559885,1727693456836,-1318.782489,0.00014101,2]
[339559886,1727693456848,-151.0,0.00014101,2]
[339559887,1727693456860,-500.0,0.00014106,2]
[339559888,1727693456871,-150.0,0.00014106,2]
[339559889,1727693456883,-150.0,0.00014106,2]
[339559890,1727693456895,-500.0,0.00014133,2]
[339559891,1727693456907,-150.0,0.00014133,2]
[339559892,1727693456919,-241.30539446,0.00014133,2]
[339559893,1727693456930,-500.0,0.00014161,2]
[339559894,1727693456942,-291.64125952,0.00014161,2]
[339559895,1727693456953,-500.0,0.00014188,2]
[339559896,1727693456965,-151.0,0.00014215,2]
[339559897,1727693456976,-171.267874,0.00014215,2]
[339559898,1727693456987,-170.280696,0.00014215,2]
[339559899,1727693456998,-170.280696,0.00014215,2]
[339559900,1727693457008,-151.0,0.00014215,2]
[339559901,1727693457020,-191.840227,0.00014215,2]
[339559902,1727693457032,-191.840227,0.00014215,2]
[339559903,1727693457043,-500.0,0.00014215,2]
[339559904,1727693457054,-234.501943,0.00014226,2]
[339559905,1727693457065,-234.501943,0.00014226,2]
[339559906,1727693457076,-156.130615,0.00014236,2]
[339559907,1727693457087,-151.0,0.00014236,2]
[339559908,1727693457098,-151.0,0.00014236,2]
[339559909,1727693457110,-151.0,0.00014236,2]
[339559910,1727693457121,-151.0,0.00014236,2]
[339559911,1727693457131,-151.0,0.00014236,2]
[339559912,1727693457142,-153.270278,0.00014236,2]
[339559913,1727693457154,-153.270278,0.00014236,2]
[339559914,1727693457165,-241.122368,0.00014236,2]
[339559915,1727693457177,-241.122368,0.00014236,2]
[339559916,1727693457189,-644.31578,0.00014236,2]
[339559917,1727693457200,-644.31578,0.00014236,2]
[339559918,1727693457210,-175.368617,0.00014236,2]
[339559919,1727693457221,-175.368617,0.00014236,2]
[339559920,1727693457232,-270.65267,0.00014236,2]
[339559921,1727693457243,-270.65267,0.00014236,2]
[339559922,1727693457254,-876.431129,0.00014236,2]
[339559923,1727693457265,-876.431129,0.00014236,2]
[339559924,1727693457275,-151.0,0.00014236,2]
[339559925,1727693457287,-151.0,0.00014236,2]
[339559926,1727693457298,-151.0,0.00014236,2]
[339559927,1727693457309,-151.0,0.00014236,2]
[339559928,1727693457320,-500.0,0.00014243,2]
[339559929,1727693457331,-241.122368,0.00014245,2]
[339559930,1727693457343,-241.122368,0.00014245,2]
[339559931,1727693457354,-644.31578,0.00014245,2]
[339559932,1727693457365,-644.31578,0.00014245,2]
[339559933,1727693457376,-193.941016,0.00014245,2]
[339559934,1727693457387,-193.941016,0.00014245,2]
[339559935,1727693457398,-1000.0,0.00014245,2]
[339559936,1727693457409,-1000.0,0.00014245,2]
[339559937,1727693457420,-1000.0,0.00014245,2]
[339559938,1727693457431,-1000.0,0.00014245,2]
[339559939,1727693457441,-1000.0,0.00014245,2]
[339559940,1727693457453,-1000.0,0.00014245,2]
[339559941,1727693457464,-1000.0,0.00014245,2]
[339559942,1727693457475,-1000.0,0.00014245,2]
[339559943,1727693457485,-1000.0,0.00014245,2]
[339559944,1727693457496,-1000.0,0.00014245,2]
[339559945,1727693457509,-1000.0,0.00014245,2]
[339559946,1727693457519,-1000.0,0.00014245,2]
[339559947,1727693457529,-1000.0,0.00014245,2]
[339559948,1727693457900,-1000.0,0.00014245,2]
[339559949,1727693457923,-1000.0,0.00014245,2]
[339559950,1727693457943,-1000.0,0.00014245,2]
[339559951,1727693457953,-1000.0,0.00014245,2]
[339559952,1727693457963,-1000.0,0.00014245,2]
[339559953,1727693457973,-1000.0,0.00014245,2]
[339559954,1727693457983,-1000.0,0.00014245,2]
[339559955,1727693457992,-1000.0,0.00014245,2]
[339559956,1727693458002,-1000.0,0.00014245,2]
[339559957,1727693458012,-1000.0,0.00014245,2]
[339559958,1727693458022,-1000.0,0.00014245,2]
[339559959,1727693458032,-1000.0,0.00014245,2]
[339559960,1727693458042,-1000.0,0.00014245,2]
[339559961,1727693458052,-1000.0,0.00014245,2]
[339559962,1727693458062,-1000.0,0.00014245,2]
[339559963,1727693458072,-1000.0,0.00014245,2]
[339559964,1727693458082,-1000.0,0.00014245,2]
[339559965,1727693458092,-1000.0,0.00014245,2]
[339559966,1727693458102,-222.106971,0.00014245,2]
[339559967,1727693458112,-1000.0,0.00014245,2]
[339559968,1727693458122,-1000.0,0.00014245,2]
[339559969,1727693458132,-1000.0,0.00014245,2]
[339559970,1727693458142,-1000.0,0.00014245,2]
[339559971,1727693458152,-1000.0,0.00014245,2]
[339559972,1727693458162,-222.106971,0.00014245,2]
[339559973,1727693458172,-168.617411,0.00014245,2]
[339559974,1727693458181,-420.058658,0.00014245,2]
[339559975,1727693458191,-420.058658,0.00014245,2]
[339559976,1727693458201,-151.0,0.00014245,2]
[339559977,1727693458210,-151.0,0.00014245,2]
[339559978,1727693458220,-152.280393,0.00014245,2]
[339559979,1727693458230,-151.0,0.00014245,2]
[339559980,1727693458240,-894.141748,0.00014245,2]
[339559981,1727693458249,-894.141748,0.00014245,2]
[339559982,1727693458259,-151.0,0.00014245,2]
[339559983,1727693458269,-426.57131,0.00014245,2]
[339559984,1727693458278,-426.57131,0.00014245,2]
[339559985,1727693458288,-2242.625122,0.00014245,2]
[339559986,1727693458297,-2242.625122,0.00014245,2]
[339559987,1727693458306,-917.864052,0.00014245,2]
[339559988,1727693458315,-917.864052,0.00014245,2]
[339559989,1727693458325,-151.0,0.00014245,2]
[339559990,1727693458334,-1383.913917,0.00014245,2]
[339559991,1727693458344,-1383.913917,0.00014245,2]
[339559992,1727693458353,-170.1685,0.00014245,2]
[339559993,1727693458363,-170.1685,0.00014245,2]
[339559994,1727693458372,-4489.194473,0.00014245,2]
[339559995,1727693458381,-4489.194473,0.00014245,2]
[339559996,1727693458391,-5668.46223,0.00014245,2]
[339559997,1727693458401,-5668.46223,0.00014245,2]
[339559998,1727693458411,-2559.21162354,0.00014246,2]
[339559999,1727693458957,-756.3,0.00013698,2]
[339560000,1727693458968,-500.0,0.00013698,2]
[339560001,1727693458978,-500.0,0.00013972,2]
[339560002,1727693458987,-756.3,0.00013972,2]
[339560003,1727693458997,-500.0,0.00013972,2]
[339560004,1727693459006,-58892.16682315,0.00014246,2]
[339560005,1727693459488,-500.0,0.00013698,2]
[339560006,1727693459499,-151.0,0.00013972,2]
[339560007,1727693459510,-151.0,0.00013972,2]
[339560008,1727693459519,-151.0,0.00013972,2]
[339560009,1727693459528,-222.864222,0.00013972,2]
[339560010,1727693459538,-222.864222,0.00013972,2]
[339560011,1727693459549,-40759.15189509,0.00014246,2]
[339560012,1727693459562,-59604.41347586,0.00014246,2]
[339560013,1727693459571,-90597.25686214,0.00014246,2]
[339560014,1727693460112,-500.0,0.00013698,2]
[339560015,1727693460123,-222.864222,0.00013972,2]
[339560016,1727693460132,-153.372564,0.00013972,2]
[339560017,1727693460142,-1665.443214,0.00014246,2]
[339560062,1727694416301,-227.86158341,0.0001269,2]
[339560063,1727694443366,152.0,1.6e-06,2]
[339560092,1727694633024,-22.13841659,0.0001269,2]
[339560093,1727694633034,-404.84373916,0.00013598,2]
[339560094,1727694633046,-288.20685641,0.00013598,2]
[339560095,1727694633056,-385.29924434,0.00013658,2]
[339560122,1727694638585,-80.49669556,0.00013658,2]
[339560124,1727694638595,-500.0,0.00013673,2]
[339560126,1727694638604,-300.0,0.00013677,2]
[339560128,1727694638614,-250.75333679,0.00013678,2]
[339560130,1727694638624,-46075.862611,0.00013678,2]
[339560132,1727694638633,-2267.05015864,0.00013678,2]
[339560134,1727694638643,-184303.450444,0.00013688,2]
[339560136,1727694638652,-9068.20063456,0.00013688,2]
[339560139,1727694638661,-500.0,0.00013698,2]
[339560142,1727694638671,-505.99502051,0.00013698,2]
[339560144,1727694638681,-638.97539031,0.00013698,2]
[339560146,1727694638691,-500.0,0.00013698,2]
[339560148,1727694638700,-500.0,0.00013698,2]
[339560150,1727694638709,-500.0,0.00013698,2]
[339560151,1727694638719,-500.0,0.00013698,2]
[339560153,1727694638728,-500.0,0.00013698,2]
[339560155,1727694638737,-534.19453359,0.00013698,2]
[339560157,1727694638747,-500.0,0.00013698,2]
[339560159,1727694638756,-500.0,0.00013698,2]
[339560161,1727694638765,-500.0,0.00013698,2]
[339560163,1727694638775,-500.0,0.00013698,2]
[339560165,1727694638784,-500.0,0.00013698,2]
[339560167,1727694638794,-500.0,0.00013698,2]
[339560169,1727694638803,-500.0,0.00013698,2]
[339560171,1727694638812,-500.0,0.00013698,2]
[339560173,1727694638822,-579.24,0.00013698,2]
[339560175,1727694638837,-500.0,0.00013698,2]
[339560177,1727694638846,-245.99865928,0.00013698,2]
[339560179,1727694638856,-500.0,0.00013698,2]
[339560181,1727694638865,-564.11,0.00013698,2]
[339560183,1727694638876,-500.0,0.00013698,2]
[339560185,1727694638885,-200.87518919,0.00013698,2]
[339560187,1727694638895,-500.0,0.00013698,2]
[339560189,1727694638905,-500.0,0.00013698,2]
[339560191,1727694638914,-500.0,0.00013698,2]
[339560193,1727694638924,-500.0,0.00013698,2]
[339560195,1727694638935,-500.0,0.00013698,2]
[339560197,1727694638945,-500.0,0.00013698,2]
[339560199,1727694638954,-500.0,0.00013698,2]
[339560201,1727694638963,-565.93,0.00013698,2]
[339560203,1727694638972,-500.0,0.00013698,2]
[339560205,1727694638982,-500.0,0.00013698,2]
[339560207,1727694638991,-500.0,0.00013698,2]
[339560209,1727694639001,-500.0,0.00013698,2]
[339560211,1727694639011,-500.0,0.00013698,2]
[339560213,1727694639020,-500.0,0.00013698,2]
[339560215,1727694639029,-500.0,0.00013698,2]
[339560217,1727694639039,-500.0,0.00013698,2]
[339560219,1727694639048,-500.0,0.00013698,2]
[339560221,1727694639058,-500.0,0.00013698,2]
[339560223,1727694639068,-500.0,0.00013698,2]
[339560225,1727694639077,-500.0,0.00013698,2]
[339560227,1727694639087,-500.0,0.00013698,2]
[339560229,1727694639097,-500.0,0.00013698,2]
[339560231,1727694639106,-500.0,0.00013698,2]
[339560233,1727694639116,-500.0,0.00013698,2]
[339560235,1727694639126,-500.0,0.00013698,2]
[339560237,1727694639135,-500.0,0.00013698,2]
[339560239,1727694639144,-500.0,0.00013698,2]
[339560241,1727694639154,-484.62513483,0.00013698,2]
[339560242,1727694639163,-500.0,0.00013698,2]
[339560243,1727694639173,-500.0,0.00013698,2]
[339560244,1727694639185,-500.0,0.00013698,2]
[339560245,1727694639194,-500.0,0.00013698,2]
[339560246,1727694639203,-500.0,0.00013698,2]
[339560247,1727694639213,-500.0,0.00013698,2]
[339560248,1727694639222,-500.0,0.00013698,2]
[339560249,1727694639232,-500.0,0.00013698,2]
[339560250,1727694639241,-1846.03,0.00013698,2]
[339560251,1727694639253,-1000.0,0.00013698,2]
[339560252,1727694639262,-500.0,0.00013698,2]
[339560253,1727694639272,-565.94,0.00013698,2]
[339560254,1727694639281,-500.0,0.00013698,2]
[339560255,1727694639291,-500.0,0.00013698,2]
[339560256,1727694639300,-500.0,0.00013698,2]
[339560257,1727694639310,-500.0,0.00013698,2]
[339560259,1727694639320,-500.0,0.00013698,2]
[339560260,1727694639330,-500.0,0.00013698,2]
[339560262,1727694639339,-500.0,0.00013698,2]
[339560263,1727694639348,-500.0,0.00013698,2]
[339560264,1727694639358,-500.0,0.00013698,2]
[339560265,1727694639367,-500.0,0.00013698,2]
[339560266,1727694639377,-288.04591476,0.00013698,2]
[339560267,1727694639387,-500.0,0.00013698,2]
[339560268,1727694639396,-526.97945769,0.00013698,2]
[339560269,1727694639406,-500.0,0.00013698,2]
[339560270,1727694639415,-500.0,0.00013698,2]
[339560271,1727694639425,-500.0,0.00013698,2]
[339560272,1727694639435,-260.64725686,0.00013698,2]
[339560273,1727694639445,-500.0,0.00013698,2]
[339560274,1727694639454,-500.0,0.00013698,2]
[339560275,1727694639464,-463.69816274,0.00013698,2]
[339560276,1727694639473,-891.03,0.00013698,2]
[339560277,1727694639484,-679.03,0.00013698,2]
[339560278,1727694639494,-500.0,0.00013698,2]
[339560279,1727694639504,-500.0,0.00013698,2]
[339560280,1727694639514,-500.0,0.00013698,2]
[339560281,1727694639524,-261.95752589,0.00013698,2]
[339560282,1727694639534,-500.0,0.00013698,2]
[339560283,1727694639545,-500.0,0.00013698,2]
[339560284,1727694639555,-500.0,0.00013698,2]
[339560285,1727694639565,-500.0,0.00013698,2]
[339560286,1727694639575,-500.0,0.00013698,2]
[339560287,1727694639584,-500.0,0.00013698,2]
[339560288,1727694639593,-500.0,0.00013698,2]
[339560289,1727694639603,-500.0,0.00013698,2]
[339560290,1727694639613,-500.0,0.00013698,2]
[339560291,1727694639622,-500.0,0.00013698,2]
[339560292,1727694639632,-500.0,0.00013698,2]
[339560293,1727694639641,-500.0,0.00013698,2]
[339560294,1727694639650,-500.0,0.00013698,2]
[339560295,1727694639659,-500.0,0.00013698,2]
[339560296,1727694639669,-405.78422138,0.00013698,2]
[339560297,1727694639680,-500.0,0.00013698,2]
[339560298,1727694639690,-500.0,0.00013698,2]
[339560299,1727694639700,-500.0,0.00013698,2]
[339560300,1727694639710,-500.0,0.00013698,2]
[339560301,1727694639719,-500.0,0.00013698,2]
[339560302,1727694639728,-500.0,0.00013698,2]
[339560303,1727694639738,-500.0,0.00013698,2]
[339560304,1727694639747,-500.0,0.00013698,2]
[339560305,1727694639757,-500.0,0.00013698,2]
[339560306,1727694639767,-500.0,0.00013698,2]
[339560307,1727694639776,-500.0,0.00013698,2]
[339560308,1727694639786,-430.32229233,0.00013698,2]
[339560309,1727694639796,-500.0,0.00013698,2]
[339560310,1727694639805,-500.0,0.00013698,2]
[339560311,1727694639815,-500.0,0.00013698,2]
[339560312,1727694639824,-500.0,0.00013698,2]
[339560313,1727694639836,-792.1,0.00013698,2]
[339560314,1727694639846,-500.0,0.00013698,2]
[339560315,1727694639857,-500.0,0.00013698,2]
[339560316,1727694639866,-500.0,0.00013698,2]
[339560317,1727694639877,-500.0,0.00013698,2]
[339560318,1727694639887,-500.0,0.00013698,2]
[339560320,1727694639896,-500.0,0.00013698,2]
[339560322,1727694639908,-500.0,0.00013698,2]
[339560323,1727694639917,-500.0,0.00013698,2]
[339560325,1727694639926,-500.0,0.00013698,2]
[339560326,1727694639937,-500.0,0.00013698,2]
[339560327,1727694639946,-500.0,0.00013698,2]
[339560328,1727694639955,-500.0,0.00013698,2]
[339560329,1727694639964,-500.0,0.00013698,2]
[339560330,1727694639974,-500.0,0.00013698,2]
[339560331,1727694639984,-500.0,0.00013698,2]
[339560332,1727694639993,-500.0,0.00013698,2]
[339560333,1727694640002,-623.05791889,0.00013698,2]
[339560334,1727694640011,-500.0,0.00013698,2]
[339560335,1727694640020,-500.0,0.00013698,2]
[339560336,1727694640030,-500.0,0.00013698,2]
[339560337,1727694640040,-500.0,0.00013698,2]
[339560338,1727694640049,-500.0,0.00013698,2]
[339560339,1727694640059,-500.0,0.00013698,2]
[339560340,1727694640069,-500.0,0.00013698,2]
[339560341,1727694640078,-500.0,0.00013698,2]
[339560342,1727694640087,-519.59,0.00013698,2]
[339560343,1727694640096,-500.0,0.00013698,2]
[339560345,1727694640106,-2196.72,0.00013698,2]
[339560346,1727694640116,-500.0,0.00013698,2]
[339560347,1727694640126,-600.26,0.00013698,2]
[339560348,1727694640135,-194.78504322,0.00013698,2]
[339560349,1727694640145,-500.0,0.00013698,2]
[339560350,1727694640154,-214.97085823,0.00013698,2]
[339560351,1727694640164,-605.21,0.00013698,2]
[339560352,1727694640174,-500.0,0.00013698,2]
[339560353,1727694640185,-509.48478221,0.00013698,2]
[339560354,1727694640194,-1464.92,0.00013698,2]
[339560355,1727694640204,-500.0,0.00013698,2]
[339560356,1727694640213,-500.0,0.00013698,2]
[339560357,1727694640223,-500.0,0.00013698,2]
[339560358,1727694640232,-500.0,0.00013698,2]
[339560359,1727694640242,-500.0,0.00013698,2]
[339560361,1727694640251,-500.0,0.00013698,2]
[339560362,1727694640261,-287.00143128,0.00013698,2]
[339560363,1727694640270,-500.0,0.00013698,2]
[339560364,1727694640280,-500.0,0.00013698,2]
[339560365,1727694640291,-1407.65,0.00013698,2]
[339560366,1727694640301,-500.0,0.00013698,2]
[339560367,1727694640310,-500.0,0.00013698,2]
[339560368,1727694640320,-405.773048,0.00013698,2]
[339560369,1727694640329,-500.0,0.00013698,2]
[339560370,1727694640340,-500.0,0.00013698,2]
[339560371,1727694640350,-1786.93,0.00013698,2]
[339560372,1727694640359,-500.0,0.00013698,2]
[339560373,1727694640369,-500.0,0.00013698,2]
[339560374,1727694640379,-500.0,0.00013698,2]
[339560375,1727694640389,-500.0,0.00013698,2]
[339560377,1727694640398,-504.64391322,0.00013698,2]
[339560378,1727694640408,-500.0,0.00013698,2]
[339560379,1727694640418,-717.53,0.00013698,2]
[339560380,1727694640428,-500.0,0.00013698,2]
[339560381,1727694640445,-500.0,0.00013698,2]